bitfinex-derivatives/quotes_ETHF0:USTF0_20250708
["timestamp","ask_amount","ask_price","bid_price","bid_amount"]
[1751940261264,0.6508,2527.0,2526.9,5.03654498]
[1751940261465,0.6508,2527.0,2526.9,4.39094498]
[1751940261668,0.6508,2527.0,2526.9,5.03654498]
[1751940262072,0.6508,2527.0,2526.9,4.39094498]
[1751940262274,0.6508,2527.0,2526.9,5.03654498]
[1751940262573,0.6508,2527.0,2526.9,2.83075]
[1751940262574,1.3312,2527.0,2526.9,2.83075]
[1751940263170,2.35316235,2527.6,2526.9,4.24509498]
[1751940263370,2.40706488,2527.5,2527.3,2.99710498]
[1751940263570,2.31959488,2527.4,2527.3,2.85139498]
[1751940263770,0.7038,2527.4,2527.3,0.6456]
[1751940264077,0.7038,2527.4,2527.3,1.43692]
[1751940264269,0.7038,2527.4,2527.3,3.64271498]
[1751940264874,0.7038,2527.4,2527.3,2.85139498]
[1751940265074,1.695,2527.4,2527.3,3.64271498]
[1751940265474,0.31449831,2528.0,2527.3,3.28049498]
[1751940265674,1.58582105,2527.9,2527.8,0.79116]
[1751940265871,0.7038,2527.9,2527.8,3.64255498]
[1751940266066,1.695,2527.9,2527.5,1.3779]
[1751940266270,1.695,2527.9,2527.8,0.79116]
[1751940266674,0.7038,2527.9,2527.8,1.43676]
[1751940266873,0.9912,2528.2,2528.1,0.79107]
[1751940267071,0.7038,2528.2,2528.1,3.64246498]
[1751940267266,0.7038,2528.2,2528.1,2.99686498]
[1751940267472,0.7038,2528.2,2528.1,3.64246498]
[1751940267766,2.35316235,2528.9,2528.7,0.79087]
[1751940267767,0.9912,2528.9,2528.7,0.79087]
[1751940267970,0.7038,2528.8,2528.7,2.99667498]
[1751940268975,0.7038,2528.8,2528.7,0.79088]
[1751940268976,2.27020173,2528.8,2528.7,0.79088]
[1751940269179,0.7038,2528.8,2528.7,2.99667498]
[1751940270579,0.9912,2529.1,2529.0,0.79079]
[1751940270781,4.04977735,2529.1,2528.9,0.7908]
[1751940270983,0.79089,2528.7,2528.5,0.79093]
[1751940271184,0.704,2528.6,2528.5,0.79094]
[1751940271681,0.704,2528.6,2528.5,2.76104]
[1751940272177,1.4078,2528.6,2528.5,2.11544]
[1751940272382,1.4078,2528.6,2528.5,2.76104]
[1751940272571,4.60479498,2528.6,2527.8,1.9779]
[1751940272772,0.79098,2528.4,2528.2,0.79102]
[1751940272979,0.7038,2528.3,2528.2,0.79102]
[1751940273280,1.695,2528.3,2528.2,0.79102]
[1751940273479,1.695,2528.3,2528.2,1.43662]
[1751940273872,0.7038,2528.3,2528.2,1.43662]
[1751940274279,0.7038,2528.3,2528.2,3.64241498]
[1751940275183,1.695,2528.3,2528.2,1.43662]
[1751940275880,2.48601,2528.3,2527.9,0.7033]
[1751940276086,0.9912,2528.2,2528.1,0.79107]
[1751940276283,2.3477,2528.2,2528.1,0.79107]
[1751940276781,1.3565,2528.2,2528.1,3.64246498]
[1751940276977,0.79095,2528.5,2528.3,0.79101]
[1751940277188,0.7038,2528.4,2528.3,3.64240498]
[1751940277391,0.7038,2528.4,2528.3,2.99680498]
[1751940277685,0.7038,2528.4,2528.3,4.33610498]
[1751940279381,0.6527,2528.7,2528.3,3.54509498]
[1751940279581,0.6527,2528.7,2528.6,0.79091]
[1751940279786,2.3477,2528.7,2528.6,1.43651]
[1751940280182,1.3565,2528.7,2528.6,1.43651]
[1751940280778,3.13858,2528.7,2528.6,0.6456]
[1751940281090,0.79093,2528.6,2528.4,2.15215]
[1751940281279,0.7038,2528.5,2528.4,2.15215]
[1751940281481,0.7038,2528.5,2528.4,2.79775]
[1751940284190,0.6527,2528.7,2528.6,0.79091]
[1751940284390,0.7038,2528.7,2528.6,0.79091]
[1751940284591,0.7038,2528.7,2528.6,1.43651]
[1751940284788,0.7038,2528.7,2528.6,2.84601]
[1751940284987,2.48588,2528.7,2528.6,2.84601]
[1751940285189,1.695,2528.7,2528.6,2.84601]
[1751940285791,2.48588,2528.7,2528.6,2.84601]
[1751940285993,0.79094,2528.6,2528.3,0.6937]
[1751940286192,0.7038,2528.4,2528.3,1.48471]
[1751940287194,2.48598,2528.4,2528.3,0.79101]
[1751940290196,0.79101,2528.3,2528.2,0.79101]
[1751940290387,2.43731,2528.3,2528.2,0.79101]
[1751940290591,0.79106,2528.2,2528.1,0.79105]
[1751940290899,1.3215,2528.2,2528.1,0.79105]
[1751940291189,0.9912,2528.4,2528.3,0.79101]
[1751940291395,0.6551,2528.4,2528.3,0.79101]
[1751940291599,0.6551,2528.4,2528.3,1.43251]
[1751940292095,1.6576,2528.7,2528.6,0.79091]
[1751940292295,2.3127,2528.7,2528.6,1.43241]
[1751940292494,3.10358,2528.7,2528.6,0.79091]
[1751940292694,0.79091,2528.6,2528.5,0.79093]
[1751940292897,0.6551,2528.6,2528.5,1.43243]
[1751940293098,0.6551,2528.6,2528.5,2.81993]
[1751940296999,1.44601,2528.6,2528.5,2.81993]
[1751940297299,0.6551,2528.6,2528.5,2.81993]
[1751940302206,1.7159,2528.6,2528.5,2.81993]
[1751940303096,0.6551,2528.6,2528.5,2.81993]
[1751940303805,1.7159,2528.6,2528.5,2.81993]
[1751940304110,0.6551,2528.6,2528.5,2.81993]
[1751940306302,4.5341,2528.9,2528.8,0.79085]
[1751940306500,6.72618183,2528.9,2528.8,0.79085]
[1751940306695,7.78698183,2528.9,2528.8,1.43235]
[1751940306894,7.78698183,2528.9,2528.8,0.79085]
[1751940307102,6.25,2528.9,2528.8,1.43235]
[1751940308010,5.1892,2528.9,2528.8,3.63510503]
[1751940308311,4.5491,2528.9,2528.8,3.63510503]
[1751940308808,4.5491,2528.9,2528.8,4.28800503]
[1751940309009,3.894,2528.9,2528.8,5.62110503]
[1751940310010,0.79067,2529.4,2528.9,1.97704]
[1751940310209,2.2331857,2529.3,2529.2,2.99348503]
[1751940310511,1.3515,2529.3,2529.2,3.63498503]
[1751940310710,2.19162392,2529.3,2529.2,2.99348503]
[1751940310911,0.6551,2529.3,2529.2,3.63498503]
[1751940311108,0.6964,2529.7,2529.2,2.84425503]
[1751940311309,1.0608,2529.6,2529.5,0.79061]
[1751940311510,2.19108472,2529.6,2529.5,0.79061]
[1751940311807,0.6964,2529.7,2529.5,0.79061]
[1751940311808,1.0608,2529.8,2529.7,0.79057]
[1751940312004,0.6551,2529.8,2529.7,0.79057]
[1751940312201,0.6551,2529.8,2529.7,1.43207]
[1751940313207,0.6551,2529.8,2529.2,4.7299653]
[1751940313208,5.89504503,2529.8,2529.1,13.1249653]
[1751940313412,1.0608,2529.7,2529.1,1.9769]
[1751940313711,0.6551,2529.8,2529.7,0.79057]
[1751940313905,1.44989,2530.0,2529.9,0.79051]
[1751940313906,0.6594,2530.0,2529.9,0.79051]
[1751940314102,2.3753,2530.0,2529.9,0.6415]
[1751940314508,2.3753,2530.0,2529.9,2.71001]
[1751940314812,0.6551,2530.0,2529.9,2.71001]
[1751940319019,0.6646,2530.2,2530.1,0.79045]
[1751940319224,1.0608,2530.5,2530.4,0.79035]
[1751940319519,1.44542,2530.5,2530.3,0.79036]
[1751940319719,0.6451,2530.4,2530.3,0.79036]
[1751940319920,1.7059,2530.4,2530.3,1.43186]
[1751940320114,2.49625,2530.4,2530.3,0.6415]
[1751940320316,1.7059,2530.4,2530.3,1.43188]
[1751940320512,2.49625,2530.4,2530.3,1.43188]
[1751940321419,1.7059,2530.4,2530.3,1.43188]
[1751940321722,2.49625,2530.4,2530.3,1.43188]
[1751940322818,1.43545,2530.4,2530.3,0.79038]
[1751940323025,2.3438,2530.4,2530.3,0.79038]
[1751940323325,2.3438,2530.4,2530.3,1.46948]
[1751940323922,2.3438,2530.4,2530.3,2.88838]
[1751940324626,1.2868,2530.4,2530.3,2.88838]
[1751940324826,1.057,2530.7,2530.6,0.79029]
[1751940325028,1.6987,2530.7,2530.6,0.79029]
[1751940325520,1.6987,2530.7,2530.6,2.88829]
[1751940325724,2.48896,2530.7,2530.6,0.6791]
[1751940325926,2.48896,2530.7,2530.6,1.46939]
[1751940326128,2.48896,2530.7,2530.6,0.6791]
[1751940326728,3.90145503,2530.7,2529.8,1.97635]
[1751940326925,3.90145503,2530.7,2529.8,3.36905]
[1751940326926,0.79041,2530.2,2529.8,3.36905]
[1751940327124,0.6877,2530.1,2530.0,0.79048]
[1751940327428,0.6877,2530.1,2530.0,2.18318]
[1751940327827,1.47814,2530.1,2530.0,0.79048]
[1751940328024,0.6877,2530.1,2530.0,0.79048]
[1751940329019,0.6877,2530.1,2530.0,1.46958]
[1751940330525,2.3864,2530.1,2530.0,1.46958]
[1751940330925,2.3864,2530.1,2530.0,0.79048]
[1751940331122,3.17684,2530.1,2530.0,0.6791]
[1751940331330,0.79049,2530.0,2529.9,0.79049]
[1751940331533,3.17687,2530.1,2530.0,1.46958]
[1751940331733,2.3864,2530.1,2530.0,1.46958]
[1751940332630,3.17684,2530.1,2530.0,1.46958]
[1751940333430,2.3864,2530.1,2530.0,1.46958]
[1751940333731,0.6417,2530.1,2530.0,1.46958]
[1751940334123,0.6417,2530.1,2530.0,2.87778]
[1751940337131,1.6987,2530.1,2530.0,2.87778]
[1751940337731,1.6987,2530.1,2530.0,0.79048]
[1751940338231,1.6987,2530.1,2529.9,0.7905]
[1751940338529,2.55628,2530.0,2529.9,0.7905]
[1751940338732,0.79051,2529.9,2529.8,0.79052]
[1751940338925,1.43221,2529.9,2529.8,0.79052]
[1751940339127,1.6987,2529.9,2529.8,0.79052]
[1751940339630,2.48921,2529.9,2529.8,0.79052]
[1751940339826,1.6987,2529.9,2529.4,4.7299653]
[1751940340028,0.79062,2529.6,2529.5,0.79061]
[1751940340334,0.79066,2529.5,2529.4,0.79065]
[1751940340527,3.19556,2529.5,2529.4,0.79065]
[1751940341132,3.19556,2529.5,2529.1,4.7299653]
[1751940341133,0.79074,2529.2,2529.1,0.79073]
[1751940341436,1.6987,2529.2,2529.1,0.79073]
[1751940342230,1.6987,2529.2,2529.1,1.46983]
[1751940342730,0.6417,2529.2,2529.1,6.04624364]
[1751940343937,1.057,2529.6,2529.1,7.23241364]
[1751940344136,3.894,2529.7,2529.6,0.7906]
[1751940344328,4.5357,2529.7,2529.6,1.4697]
[1751940344729,5.5927,2529.7,2529.6,1.4697]
[1751940346030,1.057,2529.9,2529.6,0.6791]
[1751940346236,4.951,2530.1,2529.7,5.87811364]
[1751940346536,1.6987,2530.1,2530.0,0.79048]
[1751940347331,1.6987,2530.1,2529.8,1.3017]
[1751940347636,1.057,2530.0,2529.9,0.79048]
[1751940347836,1.6987,2530.0,2529.9,0.79048]
[1751940348035,2.48919,2530.0,2529.4,4.7299653]
[1751940348237,1.057,2529.9,2529.5,1.3678]
[1751940348538,1.057,2529.9,2529.8,0.79054]
[1751940348733,1.6987,2529.9,2529.8,0.79054]
[1751940349336,1.6987,2529.9,2529.8,1.46964]
[1751940349841,1.057,2530.2,2530.1,0.79044]
[1751940350140,0.6702,2530.2,2530.1,5.36685364]
[1751940350333,0.6702,2530.2,2530.1,6.04705364]
[1751940350537,1.057,2530.5,2530.4,0.79035]
[1751940350740,1.7272,2530.5,2530.4,0.79035]
[1751940352137,0.6702,2530.5,2530.4,0.79035]
[1751940352338,0.6702,2530.5,2530.4,1.47055]
[1751940352533,0.6702,2530.5,2530.4,0.79035]
[1751940352738,0.6702,2530.5,2530.4,2.80635]
[1751940354234,4.925,2530.7,2530.6,0.79029]
[1751940354436,4.5642,2530.7,2530.6,0.79029]
[1751940354944,5.5952,2530.7,2530.4,1.3358]
[1751940355145,1.031,2530.6,2530.5,0.79031]
[1751940355346,1.7012,2530.6,2530.5,0.79031]
[1751940355945,0.6702,2530.6,2530.5,1.47051]
[1751940358842,0.6702,2530.6,2530.5,3.66946069]
[1751940362140,1.7012,2530.6,2530.4,1.3358]
[1751940362348,0.79032,2530.5,2530.3,2.86995069]
[1751940362552,0.79032,2530.5,2530.3,2.98933069]
[1751940362553,1.7012,2530.4,2530.3,2.98933069]
[1751940362742,2.3975,2530.4,2530.3,3.66953069]
[1751940362938,1.3665,2530.4,2530.3,3.66953069]
[1751940363140,1.82125,2530.8,2530.6,0.79026]
[1751940363351,0.6702,2530.7,2530.6,0.79026]
[1751940363550,1.7012,2530.7,2530.6,0.79026]
[1751940364150,2.49146,2530.7,2530.6,0.79026]
[1751940364349,1.7012,2530.7,2530.6,0.79026]
[1751940364651,2.49146,2530.7,2530.6,0.79026]
[1751940366850,1.7012,2530.7,2530.6,0.79026]
[1751940367447,2.49146,2530.7,2530.6,0.79026]
[1751940368251,1.7012,2530.7,2530.6,0.79026]
[1751940368447,2.49146,2530.7,2530.6,0.79026]
[1751940368648,1.7012,2530.7,2530.6,0.79026]
[1751940369050,2.49146,2530.7,2530.6,0.79026]
[1751940370151,1.7012,2530.7,2530.4,1.2967]
[1751940370352,0.79037,2530.4,2530.3,0.79037]
[1751940370552,1.7012,2530.4,2530.3,0.79037]
[1751940370753,0.79041,2530.3,2530.2,0.7904]
[1751940370948,0.79041,2530.2,2530.1,3.52305069]
[1751940371153,1.46061,2530.2,2530.1,0.79044]
[1751940371357,2.49161,2530.2,2530.1,0.79044]
[1751940371855,0.79044,2530.1,2530.0,0.79046]
[1751940372156,3.19764,2530.1,2530.0,0.79046]
[1751940373551,0.79048,2530.0,2529.9,2.19895069]
[1751940373755,0.79052,2529.9,2529.8,0.79051]
[1751940373947,2.49172,2529.9,2529.8,0.79051]
[1751940374655,1.7012,2529.9,2529.8,1.47071]
[1751940375152,2.49171,2529.9,2529.8,0.79051]
[1751940375359,2.49171,2529.9,2529.8,1.47071]
[1751940376663,0.79054,2529.8,2529.7,0.6522]
[1751940376859,2.49174,2529.8,2529.7,1.3324]
[1751940377455,1.7012,2529.8,2529.7,3.41767]
[1751940382564,0.6702,2529.8,2529.7,3.41767]
[1751940383162,4.9535,2530.5,2530.4,0.79035]
[1751940383458,0.6962,2530.5,2530.4,3.66540069]
[1751940383864,0.6962,2530.5,2530.4,2.98930069]
[1751940384060,0.6962,2530.5,2530.4,3.66540069]
[1751940384466,0.6962,2530.5,2530.4,2.98930069]
[1751940384665,5.6252,2530.7,2530.6,0.79029]
[1751940384866,5.2619,2530.7,2530.6,2.98924069]
[1751940385066,6.05216,2530.7,2530.6,0.79029]
[1751940385465,6.05217,2530.7,2530.6,0.79029]
[1751940385765,6.05217,2530.7,2530.5,2.98925069]
[1751940385966,6.05218,2530.7,2530.5,2.98925069]
[1751940386357,6.05218,2530.7,2530.6,0.79029]
[1751940386563,5.2619,2530.7,2530.6,0.79029]
[1751940386962,5.2619,2530.7,2530.3,3.51305069]
[1751940387266,0.79042,2530.2,2530.1,0.79043]
[1751940387568,2.19895069,2530.3,2529.7,8.29561599]
[1751940387769,0.79047,2530.1,2530.0,0.79047]
[1751940388466,2.54617,2530.1,2530.0,0.79047]
[1751940389661,0.79049,2530.0,2529.9,0.79049]
[1751940389864,1.48667,2530.1,2530.0,0.79048]
[1751940390063,1.7557,2530.1,2530.0,0.79048]
[1751940390463,2.54615,2530.1,2530.0,0.79048]
[1751940391868,1.7557,2530.1,2529.7,3.56565069]
[1751940392063,1.0595,2530.0,2529.9,2.19895069]
[1751940392367,1.7557,2530.0,2529.9,3.66556069]
[1751940392760,1.7557,2530.0,2529.6,0.6738]
[1751940392967,1.85003,2529.9,2529.8,0.79054]
[1751940393169,2.54623,2529.9,2529.8,0.79054]
[1751940393865,0.79056,2529.8,2529.7,0.79056]
[1751940394072,0.79056,2529.8,2529.5,3.59485069]
[1751940394073,0.7906,2529.6,2529.5,4.38547069]
[1751940394267,0.79059,2529.7,2529.6,0.79059]
[1751940394668,1.48679,2529.7,2529.6,0.79059]
[1751940394970,0.7906,2529.6,2529.5,4.38548069]
[1751940395173,0.79062,2529.6,2529.5,0.79062]
[1751940395372,2.5463,2529.7,2529.3,2.85385069]
[1751940395566,2.54627,2529.7,2529.6,0.7906]
[1751940395967,2.54627,2529.7,2529.5,2.98956069]
[1751940396372,0.7906,2529.6,2529.5,2.98956069]
[1751940396869,2.54629,2529.7,2529.5,2.98956069]
[1751940397071,0.7906,2529.6,2529.5,2.98956069]
[1751940397271,0.7906,2529.6,2529.5,0.79063]
[1751940397472,1.7557,2529.7,2529.4,4.38549069]
[1751940397671,0.7906,2529.6,2529.5,0.79062]
[1751940397867,0.7906,2529.7,2529.5,0.79063]
[1751940398068,1.7557,2529.6,2529.5,2.78283]
[1751940398261,1.7557,2529.6,2529.5,4.98178069]
[1751940398465,1.7557,2529.6,2529.5,4.30568069]
[1751940398967,1.7557,2529.6,2529.5,4.98178069]
[1751940399166,2.5463,2529.6,2529.5,4.30568069]
[1751940399367,2.5463,2529.6,2529.5,4.98178069]
[1751940399968,2.5463,2529.6,2529.5,4.19115069]
[1751940400770,2.5463,2529.6,2529.5,4.98178069]
[1751940401175,2.5463,2529.6,2529.5,4.19115069]
[1751940401372,2.5463,2529.6,2529.5,4.98178069]
[1751940401871,1.7557,2529.6,2529.5,4.98178069]
[1751940402073,2.5463,2529.6,2529.5,2.78283]
[1751940403775,2.5463,2529.6,2529.5,2.10673]
[1751940404370,1.7557,2529.6,2529.5,2.10673]
[1751940404565,0.6962,2529.6,2529.5,2.10673]
[1751940404770,0.6811,2529.8,2529.7,0.79057]
[1751940404970,0.6962,2529.8,2529.7,2.98952069]
[1751940405170,0.6962,2529.8,2529.7,3.66562069]
[1751940405380,0.6962,2529.8,2529.7,4.36032069]
[1751940410087,1.48674,2529.8,2529.7,4.36032069]
[1751940410394,1.7557,2529.8,2529.7,3.68422069]
[1751940410986,0.79053,2529.9,2529.8,0.79054]
[1751940411581,0.79054,2529.8,2529.7,3.68420069]
[1751940412088,2.54353,2529.9,2529.8,0.79054]
[1751940412388,2.54353,2529.9,2529.8,1.45964]
[1751940413085,2.54353,2529.9,2529.8,0.6691]
[1751940413385,9.74248069,2529.9,2529.8,0.6691]
[1751940414489,7.54353,2529.9,2529.8,0.6691]
[1751940414689,0.79057,2529.7,2529.6,0.79059]
[1751940414892,2.45007,2529.7,2529.6,0.79059]
[1751940415285,1.6595,2529.7,2529.6,0.79059]
[1751940415490,5.5311,2530.1,2530.0,0.79048]
[1751940415692,7.01506,2530.1,2530.0,2.19895069]
[1751940415992,0.79048,2530.0,2529.9,0.79049]
[1751940416183,0.79053,2529.9,2529.8,0.79052]
[1751940416388,0.79054,2529.8,2529.7,0.79055]
[1751940417488,0.79066,2529.4,2529.3,7.71959599]
[1751940417682,0.79062,2529.6,2529.5,0.79062]
[1751940418086,0.7906,2529.6,2529.4,0.79063]
[1751940418287,0.79063,2529.5,2529.4,2.11993]
[1751940418489,0.79063,2529.5,2529.4,1.9984]
[1751940418788,0.79063,2529.5,2529.4,1.3293]
[1751940419191,0.79063,2529.5,2529.4,2.78906]
[1751940419391,0.79063,2529.5,2529.4,2.11996]
[1751940419689,0.79063,2529.5,2529.4,2.78906]
[1751940420084,2.45013,2529.5,2529.4,1.3293]
[1751940420292,0.79066,2529.4,2529.3,2.98964069]
[1751940420791,0.79066,2529.4,2529.3,3.65874069]
[1751940420992,0.79066,2529.4,2529.3,5.05784069]
[1751940421692,1.48416,2529.4,2529.3,5.05784069]
[1751940422595,1.48416,2529.4,2529.3,4.26715069]
[1751940422794,2.45016,2529.4,2529.3,5.05784069]
[1751940425492,2.45016,2529.4,2529.3,4.26715069]
[1751940425898,1.6595,2529.4,2529.3,5.05784069]
[1751940426094,2.45016,2529.4,2529.3,5.05784069]
[1751940426297,1.6595,2529.4,2529.3,5.05784069]
[1751940426594,1.48416,2529.4,2529.3,5.05784069]
[1751940427097,0.6935,2529.4,2529.3,5.05784069]
[1751940429898,5.5021,2529.7,2529.6,0.7906]
[1751940430096,3.894,2529.7,2529.6,3.65865069]
[1751940430795,3.894,2529.7,2529.6,5.03755069]
[1751940431397,3.894,2529.7,2529.6,4.36845069]
[1751940431598,3.894,2529.7,2529.6,5.03755069]
[1751940431894,3.894,2529.7,2529.6,3.57785069]
[1751940432098,4.5875,2529.7,2529.6,4.24695069]
[1751940432301,4.5875,2529.7,2529.6,5.03755069]
[1751940432800,5.5535,2529.7,2529.6,5.03755069]
[1751940432998,5.5535,2529.7,2529.5,0.6479]
[1751940433198,2.4263,2529.6,2529.5,1.43853]
[1751940433396,3.1198,2529.6,2529.5,3.41013]
[1751940433800,2.3292,2529.6,2529.5,3.41013]
[1751940434300,0.6935,2529.6,2529.5,3.41013]
[1751940436002,1.75656,2529.8,2529.7,0.79057]
[1751940436203,2.45006,2529.8,2529.7,2.19895069]
[1751940437501,2.45006,2529.8,2529.7,2.98952069]
[1751940438505,2.45006,2529.8,2529.7,3.65862069]
[1751940439305,2.45006,2529.8,2529.7,0.6691]
[1751940439802,2.45006,2529.8,2529.7,1.45967]
[1751940440706,2.45006,2529.8,2529.7,0.6691]
[1751940440998,0.79057,2529.7,2529.6,2.98953069]
[1751940441204,1.46407,2529.7,2529.6,2.98953069]
[1751940441405,2.43007,2529.7,2529.6,2.19895069]
[1751940441706,2.43007,2529.7,2529.6,3.66965069]
[1751940442205,2.43007,2529.7,2529.6,5.01175069]
[1751940444304,0.7906,2529.6,2529.5,1.43851]
[1751940444508,2.518,2529.6,2529.5,1.328]
[1751940444803,2.518,2529.6,2529.5,0.6479]
[1751940445202,2.518,2529.6,2529.5,1.328]
[1751940445507,2.518,2529.6,2529.5,2.11863]
[1751940446007,2.518,2529.6,2529.5,3.40543]
[1751940446307,1.4641,2529.6,2529.5,3.40543]
[1751940449608,0.6735,2529.6,2529.5,3.40543]
[1751940452508,0.79057,2529.7,2529.6,0.79057]
[1751940452707,1.46407,2529.7,2529.6,4.99692069]
[1751940452907,1.46407,2529.7,2529.6,4.31682069]
[1751940453110,1.46407,2529.7,2529.6,4.99692069]
[1751940453809,1.46407,2529.7,2529.6,4.20635069]
[1751940454211,1.46407,2529.7,2529.6,4.99695069]
[1751940455006,0.6735,2529.7,2529.6,4.99695069]
[1751940456415,1.7593,2529.9,2529.8,0.79054]
[1751940456713,3.22331,2529.9,2529.8,2.87905069]
[1751940457615,3.22331,2529.9,2529.8,3.66959069]
[1751940458614,2.4328,2529.9,2529.6,0.79057]
[1751940458810,1.84446,2529.8,2529.7,0.79057]
[1751940459010,2.51796,2529.8,2529.7,0.79057]
[1751940460118,0.7906,2529.7,2529.6,0.79058]
[1751940460422,1.4641,2529.6,2529.5,2.98956069]
[1751940460715,2.518,2529.6,2529.5,2.98956069]
[1751940461810,2.518,2529.6,2529.5,3.66966069]
[1751940462216,2.518,2529.6,2529.5,2.98956069]
[1751940465723,2.518,2529.6,2529.5,2.19895069]
[1751940466022,2.518,2529.6,2529.5,2.98958069]
[1751940466220,2.518,2529.6,2529.5,2.19895069]
[1751940466423,1.97659,2529.5,2529.1,4.7299653]
[1751940466720,0.79079,2529.0,2528.9,4.7299653]
[1751940466915,1.46429,2529.0,2528.9,0.79082]
[1751940467120,2.51819,2529.0,2528.9,0.79082]
[1751940467419,0.79082,2528.9,2528.8,4.92708069]
[1751940467623,1.46432,2528.9,2528.8,4.92708069]
[1751940467916,2.51822,2528.9,2528.8,5.60718069]
[1751940468121,2.51822,2528.9,2528.8,4.81635069]
[1751940470430,0.79091,2528.6,2528.5,0.79094]
[1751940470625,1.47791,2528.6,2528.5,3.48974]
[1751940470826,1.47791,2528.6,2528.5,2.80454]
[1751940471325,1.47791,2528.6,2528.5,3.48974]
[1751940472127,0.687,2528.6,2528.5,3.48974]
[1751940479834,0.6933,2529.0,2528.8,0.79083]
[1751940480140,0.687,2528.9,2528.8,3.67498069]
[1751940480432,2.46372,2528.9,2528.8,3.67498069]
[1751940480633,2.46372,2528.9,2528.8,2.98978069]
[1751940481328,0.79088,2528.8,2528.7,0.79087]
[1751940481634,2.46378,2528.8,2528.7,0.79087]
[1751940482235,0.79088,2528.7,2528.6,2.98983069]
[1751940482437,2.46378,2528.7,2528.6,0.79088]
[1751940483137,1.6729,2528.7,2528.6,0.79088]
[1751940483332,1.6729,2528.7,2528.6,1.47608]
[1751940483835,1.6729,2528.7,2528.6,3.67503069]
[1751940484037,0.687,2528.7,2528.6,4.98563069]
[1751940484237,1.6729,2528.7,2528.6,4.98563069]
[1751940485237,0.687,2528.7,2528.6,4.98563069]
[1751940486636,1.6729,2528.7,2528.6,4.98563069]
[1751940488938,1.6729,2528.7,2528.6,1.47611]
[1751940488939,2.46378,2528.7,2528.6,1.47611]
[1751940489133,2.46378,2528.7,2528.6,0.79091]
[1751940489337,0.79093,2528.6,2528.5,0.79093]
[1751940489533,3.16681,2528.6,2528.5,0.79093]
[1751940490730,3.16681,2528.6,2528.5,1.47613]
[1751940490943,3.16681,2528.6,2528.5,0.79093]
[1751940491238,3.16681,2528.6,2528.5,1.47613]
[1751940491440,0.79098,2528.4,2528.3,2.83898]
[1751940491632,1.47798,2528.4,2528.3,0.79098]
[1751940491834,1.47798,2528.4,2528.0,6.20623959]
[1751940491835,0.79107,2528.1,2528.0,6.20623959]
[1751940492140,2.46397,2528.1,2528.0,2.16468]
[1751940492533,2.46397,2528.1,2528.0,0.79108]
[1751940493642,1.6729,2528.1,2527.7,3.57255069]
[1751940493842,2.43632,2528.0,2527.9,0.79113]
[1751940494140,3.12332,2528.0,2527.9,2.99008069]
[1751940494841,2.3322,2528.0,2527.9,2.99008069]
[1751940495041,3.1233,2528.0,2527.9,2.99008069]
[1751940495443,2.3322,2528.0,2527.9,2.99008069]
[1751940496342,1.3463,2528.0,2527.9,3.67528069]
[1751940496543,0.9859,2528.5,2528.4,0.79098]
[1751940496743,3.18730777,2528.5,2528.4,2.98993069]
[1751940497042,0.687,2528.5,2528.4,3.67513069]
[1751940497243,0.687,2528.5,2528.4,2.98993069]
[1751940497441,0.687,2528.5,2528.4,3.67513069]
[1751940497941,0.687,2528.5,2528.4,2.98993069]
[1751940498339,0.6416,2528.8,2528.4,3.67513069]
[1751940498544,1.43245,2528.8,2528.7,0.79088]
[1751940498744,3.10535,2528.8,2528.7,1.47608]
[1751940499139,2.3145,2528.8,2528.7,1.47608]
[1751940499341,1.3286,2528.8,2528.7,1.47608]
[1751940499541,1.3286,2528.8,2528.7,2.83188]
[1751940500643,8.375,2529.2,2528.7,2.041]
[1751940500943,0.7054,2529.1,2529.0,0.79079]
[1751940501140,2.3982,2529.1,2529.0,1.46809]
[1751940501842,0.7069,2529.1,2529.0,1.46809]
[1751940502042,0.7069,2529.1,2529.0,3.66704069]
[1751940502443,2.50144,2529.5,2529.0,2.87625069]
[1751940502647,1.49604,2529.5,2529.4,2.98961069]
[1751940502841,2.20294,2529.5,2529.4,2.19895069]
[1751940503047,0.79069,2529.3,2529.2,2.98966069]
[1751940503249,2.50299,2529.3,2529.2,2.98966069]
[1751940503545,1.7123,2529.3,2529.2,2.98966069]
[1751940504142,1.7123,2529.3,2529.2,3.66696069]
[1751940504443,0.7069,2529.3,2529.2,3.66696069]
[1751940504644,0.7069,2529.3,2529.1,2.0316]
[1751940504645,1.7123,2529.3,2528.6,1.97723]
[1751940504949,0.79077,2529.1,2528.7,2.84585069]
[1751940505151,0.79075,2529.2,2529.0,0.79077]
[1751940505345,2.19895069,2529.4,2528.9,2.98975069]
[1751940505346,1.49767,2529.1,2528.9,2.98975069]
[1751940505648,2.18747,2529.1,2529.0,0.79079]
[1751940506046,2.18747,2529.1,2528.9,2.98975069]
[1751940506249,0.79079,2529.0,2528.9,2.98975069]
[1751940506448,1.79619,2529.0,2528.9,2.19895069]
[1751940507047,1.0054,2529.0,2528.5,4.74355959]
[1751940507246,0.79082,2528.9,2528.8,0.79085]
[1751940507441,1.0054,2529.0,2528.8,3.66710069]
[1751940507647,1.7962,2529.0,2528.8,2.98980069]
[1751940508048,1.7962,2529.0,2528.9,0.79082]
[1751940508244,0.79082,2528.9,2528.8,2.19895069]
[1751940508453,0.79082,2528.9,2528.8,2.87625069]
[1751940508654,0.79082,2528.9,2528.8,2.19895069]
[1751940508850,1.7123,2528.9,2528.8,2.98979069]
[1751940509356,1.7123,2528.9,2528.8,3.66709069]
[1751940509557,1.7123,2528.9,2528.8,2.87625069]
[1751940510255,2.50312,2528.9,2528.8,2.87625069]
[1751940511059,0.79088,2528.7,2528.6,3.57595069]